bitfinex/quotes_SOLUSD_20251126
["timestamp","ask_amount","ask_price","bid_price","bid_amount"]
[1764189217764,19.8355582,143.24,143.23,0.2]
[1764189218371,19.1555582,143.24,143.23,0.2]
[1764189218680,24.25915115,143.24,143.23,0.2]
[1764189219589,19.8355582,143.24,143.23,0.2]
[1764189219982,24.25915115,143.24,143.23,0.2]
[1764189227685,19.8355582,143.24,143.23,0.2]
[1764189227887,24.25915115,143.24,143.23,0.2]
[1764189232590,22.6776568,143.24,143.23,0.2]
[1764189233311,18.9176568,143.24,143.23,0.2]
[1764189233516,18.87123506,143.24,143.23,0.2]
[1764189234019,19.01339663,143.24,143.23,0.2]
[1764189234302,19.1555582,143.24,143.23,0.2]
[1764189240690,19.8655582,143.24,143.23,0.2]
[1764189240894,19.1555582,143.24,143.23,0.2]
[1764189241691,22.7076568,143.24,143.23,0.2]
[1764189241891,19.8655582,143.24,143.23,0.2]
[1764189242106,22.7076568,143.24,143.23,0.2]
[1764189243916,22.7076568,143.24,143.2,0.1]
[1764189243917,25.40313206,143.21,143.2,0.1]
[1764189244120,31.32523066,143.21,143.2,0.1]
[1764189244296,52.76765479,143.21,143.2,0.1]
[1764189245505,9.09426806,143.2,143.19,0.2]
[1764189245813,16.07799597,143.19,143.18,1e-08]
[1764189246001,22.71009457,143.19,143.18,1e-08]
[1764189246516,25.11880892,143.15,143.14,0.1]
[1764189246715,0.28432314,143.14,143.08,0.1]
[1764189246917,28.24523066,143.09,143.08,0.1]
[1764189247210,31.32523066,143.09,143.08,0.1]
[1764189247396,16.308864,143.05,143.03,0.66]
[1764189247601,3.36432314,143.04,143.03,0.66]
[1764189248190,3.08,143.04,143.03,0.66]
[1764189248595,3.08,143.04,143.03,3.5020986]
[1764189248995,25.11880892,143.08,143.03,10.49363883]
[1764189249220,17.46810385,143.12,143.04,0.66]
[1764189249221,3.08,143.07,143.04,0.66]
[1764189249916,3.08,143.07,143.04,7.650941]
[1764189250317,3.08,143.07,143.05,0.66]
[1764189250615,3.08,143.07,143.06,2.8420986]
[1764189251126,0.7,143.16,143.06,3.5020986]
[1764189251418,34.92107836,143.18,143.08,2.8420986]
[1764189251419,2.8420986,143.14,143.08,2.8420986]
[1764189251611,0.28432314,143.11,143.08,2.8420986]
[1764189251816,0.28432314,143.11,143.09,0.66]
[1764189251817,3.08,143.1,143.09,0.66]
[1764189256108,7.62313515,143.13,143.09,15.27174371]
[1764189256109,0.28432314,143.13,143.09,15.27174371]
[1764189256422,25.08656093,143.16,143.12,7.62313515]
[1764189256423,3.08,143.14,143.12,7.62313515]
[1764189256623,3.08,143.14,143.13,7.62313515]
[1764189256999,3.08,143.14,143.13,8.27313515]
[1764189257618,10.06616738,143.14,143.11,0.65]
[1764189257813,10.06616738,143.14,143.12,0.65]
[1764189258123,3.08,143.14,143.12,0.65]
[1764189259609,3.08,143.14,143.12,15.26020945]
[1764189259821,3.08,143.14,143.13,7.62313515]
[1764189260026,3.08,143.14,143.13,8.27313515]
[1764189260334,3.08,143.14,143.11,0.65]
[1764189260629,3.08,143.14,143.12,7.62313515]
[1764189261015,3.36432314,143.14,143.13,0.65]
[1764189262626,3.08,143.14,143.13,8.27313515]
[1764189262824,3.08,143.14,143.13,15.25979063]
[1764189264227,3.08,143.14,143.13,8.27313515]
[1764189264529,3.08,143.14,143.13,0.65]
[1764189265112,3.08,143.14,143.13,8.27313515]
[1764189265313,3.08,143.14,143.13,15.25979063]
[1764189265762,3.08,143.14,143.13,8.27313515]
[1764189265913,3.08,143.14,143.13,15.25979063]
[1764189267338,16.59318714,143.17,143.13,15.25979063]
[1764189267544,3.08,143.16,143.14,0.65]
[1764189267715,3.08,143.16,143.14,8.27313515]
[1764189267914,3.08,143.16,143.14,0.65]
[1764189268242,3.08,143.16,143.15,0.65]
[1764189268413,3.08,143.16,143.12,6.98703147]
[1764189268617,3.08,143.16,143.12,7.62313515]
[1764189268839,3.08,143.16,143.13,0.65]
[1764189269337,10.0655446,143.16,143.13,0.65]
[1764189270039,0.99432314,143.15,143.11,15.26063166]
[1764189270232,9.09426806,143.15,143.11,7.62313515]
[1764189270429,9.09426806,143.15,143.1,7.63793578]
[1764189270430,0.71,143.14,143.1,7.62313515]
[1764189270626,3.08,143.13,143.09,7.62313515]
[1764189270834,3.08,143.13,143.1,0.65]
[1764189271032,3.08,143.12,143.11,7.62313515]
[1764189271546,3.08,143.12,143.11,15.26076704]
[1764189272038,3.08,143.12,143.11,8.27313515]
[1764189272244,3.08,143.14,143.11,15.26076704]
[1764189272432,3.08,143.14,143.13,7.62313515]
[1764189272636,3.08,143.14,143.13,8.27313515]
[1764189272944,3.08,143.15,143.13,8.27313515]
[1764189273138,3.08,143.15,143.14,15.25930253]
[1764189273443,17.45859472,143.2,143.14,15.25930253]
[1764189273444,3.08,143.18,143.14,15.25930253]
[1764189273619,3.08,143.18,143.16,7.62313515]
[1764189274019,3.08,143.18,143.14,6.98616738]
[1764189274222,3.08,143.18,143.16,8.27313515]
[1764189274741,3.08,143.18,143.17,0.65]
[1764189275129,3.08,143.18,143.15,8.27313515]
[1764189275331,3.08,143.18,143.15,15.25865588]
[1764189275643,3.08,143.18,143.16,0.65]
[1764189275830,3.08,143.18,143.16,8.27313515]
[1764189276250,3.08,143.18,143.17,0.65]
[1764189276543,0.91,143.25,143.17,8.27313515]
[1764189276851,11.88994492,143.24,143.2,7.62313515]
[1764189277029,0.28432314,143.23,143.2,7.62313515]
[1764189277229,11.88994492,143.24,143.2,8.27313515]
[1764189277430,18.87152135,143.24,143.2,8.27313515]
[1764189277626,0.28432314,143.23,143.21,8.27313515]
[1764189278024,3.08,143.24,143.22,7.62313515]
[1764189278239,3.08,143.24,143.22,8.27313515]
[1764189278437,10.06140021,143.24,143.22,0.65]
[1764189278641,10.06140021,143.24,143.21,7.62313515]
[1764189278840,10.06140021,143.24,143.21,8.27313515]
[1764189279049,10.06140021,143.24,143.22,0.65]
[1764189279235,0.28432314,143.23,143.19,8.27313515]
[1764189279442,6.98226504,143.22,143.18,7.62313515]
[1764189279638,3.79,143.21,143.16,31.56700698]
[1764189279831,9.80426806,143.2,143.16,0.65]
[1764189280634,9.09426806,143.2,143.16,15.25831934]
[1764189281125,9.09426806,143.2,143.17,0.65]
[1764189281352,16.0777385,143.2,143.17,0.65]
[1764189282253,0.28432314,143.18,143.14,15.25930253]
[1764189282447,3.08,143.17,143.14,15.25930253]
[1764189282675,3.08,143.17,143.15,0.65]
[1764189282956,3.08,143.2,143.16,7.62313515]
[1764189283251,3.08,143.2,143.18,7.62313515]
[1764189283429,3.08,143.2,143.18,14.60723565]
[1764189283628,3.08,143.2,143.19,0.65]
[1764189285342,9.09426806,143.19,143.16,0.72]
[1764189285651,7.62313515,143.18,143.14,0.72]
[1764189285952,3.08,143.17,143.14,0.72]
[1764189286548,0.28432314,143.16,143.14,0.72]
[1764189286748,7.90745829,143.16,143.14,0.72]
[1764189288332,7.27000249,143.15,143.14,0.72]
[1764189288727,7.27000249,143.15,143.13,0.72]
[1764189288951,3.08,143.14,143.13,0.72]
[1764189290656,10.06616738,143.14,143.13,0.72]
[1764189291653,3.08,143.14,143.13,0.72]
[1764189291853,3.08,143.14,143.13,15.32979063]
[1764189292753,3.08,143.14,143.13,0.72]
[1764189294640,16.59318714,143.18,143.13,19.49582831]
[1764189294839,3.22216157,143.17,143.13,19.49582831]
[1764189295054,3.22216157,143.17,143.14,0.72]
[1764189296441,10.20720115,143.17,143.14,0.72]
[1764189299747,11.9313344,143.16,143.12,7.70700752]
[1764189299941,11.9313344,143.16,143.13,0.72]
[1764189300466,0.14216157,143.16,143.13,0.72]
[1764189301562,7.12746217,143.16,143.13,0.72]
[1764189301762,0.14216157,143.16,143.13,7.7065299]
[1764189302267,0.14216157,143.16,143.14,0.72]
[1764189302563,21.99609764,143.17,143.14,0.72]
[1764189302564,10.20692481,143.17,143.14,0.72]
[1764189303148,3.22216157,143.17,143.14,0.72]
[1764189303552,10.20691804,143.17,143.14,0.72]
[1764189303747,10.20691804,143.17,143.14,19.49531586]
[1764189303748,3.08,143.17,143.14,19.49531586]
[1764189303954,7.12658158,143.18,143.14,19.49531586]
[1764189304165,3.08,143.16,143.15,0.72]
[1764189304470,3.08,143.16,143.14,0.72]
[1764189304773,3.08,143.16,143.15,0.72]
[1764189307071,15.82349597,143.16,143.12,0.66]
[1764189307276,15.82349597,143.16,143.1,0.66]
[1764189307277,11.78917283,143.13,143.1,0.66]
[1764189307474,3.08,143.12,143.1,0.66]
[1764189309370,3.08,143.12,143.1,7.64807795]
[1764189310185,3.08,143.12,143.11,0.66]
[1764189310975,3.08,143.14,143.11,0.66]
[1764189311272,3.08,143.14,143.12,11.78917283]
[1764189311770,9.09426806,143.16,143.1,24.45841867]
[1764189311771,3.08,143.16,143.13,12.44917283]
[1764189311962,3.08,143.16,143.13,0.66]
[1764189312164,0.14216157,143.15,143.11,7.64751452]
[1764189312360,0.28432314,143.15,143.12,0.66]
[1764189313175,7.27009006,143.15,143.12,0.66]
[1764189313988,0.28432314,143.15,143.12,7.64707452]
[1764189314177,0.28432314,143.15,143.12,19.43624735]
[1764189314361,3.08,143.16,143.13,0.69]
[1764189315279,10.06529231,143.16,143.13,0.69]
[1764189315480,6.98529231,143.16,143.13,0.69]
[1764189315660,3.08,143.15,143.13,0.69]
[1764189315860,23.57808763,143.17,143.13,19.46576379]
[1764189316173,3.08,143.15,143.13,19.46576379]
[1764189316356,3.08,143.15,143.14,0.69]
[1764189321476,5.11335824,143.2,143.14,12.11947992]
[1764189321786,10.06405981,143.19,143.14,12.11947992]
[1764189321959,10.06405981,143.19,143.15,0.69]
[1764189322765,15.17741805,143.19,143.15,0.69]
[1764189322978,14.50741805,143.19,143.15,0.69]
[1764189323572,0.28432314,143.18,143.15,0.69]
[1764189323781,0.28432314,143.18,143.13,7.67652491]
[1764189323782,11.42844149,143.17,143.13,7.67652491]
[1764189323989,3.08,143.16,143.14,0.69]
[1764189325263,8.19335824,143.16,143.11,0.69]
[1764189325468,5.39768138,143.15,143.11,0.69]
[1764189325683,0.28432314,143.13,143.09,0.69]
[1764189325870,3.08,143.12,143.09,4.44335824]
[1764189326069,3.08,143.12,143.1,0.69]
[1764189326474,16.308864,143.15,143.11,4.44335824]
[1764189326678,3.08,143.14,143.12,5.13335824]
[1764189327070,3.08,143.14,143.13,0.69]
[1764189328968,25.40313206,143.17,143.13,12.12001372]
[1764189328969,0.28432314,143.17,143.13,12.12001372]
[1764189329170,3.08,143.16,143.14,0.69]
[1764189332174,16.308864,143.19,143.15,4.44335824]
[1764189332380,3.08,143.18,143.15,4.44335824]
[1764189332579,3.08,143.18,143.16,0.69]
[1764189333591,3.08,143.18,143.15,0.69]
[1764189333789,3.08,143.18,143.14,11.42952057]
[1764189333974,3.08,143.18,143.15,0.69]
[1764189335066,3.08,143.18,143.15,7.67567018]
[1764189335596,3.08,143.18,143.16,0.69]
[1764189335900,3.08,143.18,143.16,0.3928]
[1764189336199,3.08,143.18,143.08,6.989097]
[1764189336200,14.2076263,143.17,143.08,6.989097]
[1764189336377,4.44335824,143.15,143.1,4.44335824]
[1764189336578,3.08,143.14,143.1,4.44335824]
[1764189336986,3.08,143.14,143.11,6.98763189]
[1764189337686,14.50964513,143.14,143.08,11.43245524]
[1764189337877,0.67,143.13,143.08,11.43245524]
[1764189338084,0.67,143.13,143.09,0.69]
[1764189338387,14.50964513,143.14,143.09,0.69]
[1764189338699,15.17964513,143.14,143.09,7.67820126]
[1764189338885,15.17964513,143.14,143.1,0.69]
[1764189339287,10.73628689,143.14,143.1,0.69]
[1764189339890,4.44335824,143.11,143.05,0.69]
[1764189340080,4.44335824,143.07,143.03,0.69]
[1764189340297,3.08,143.06,143.03,0.69]
[1764189340515,0.28432314,143.1,143.04,4.44335824]
[1764189340845,3.08,143.09,143.05,11.43371779]
[1764189341177,3.08,143.09,143.06,5.13335824]
[1764189341697,3.08,143.09,143.07,0.69]
[1764189343092,11.43102311,143.11,143.07,0.69]
[1764189343297,3.08,143.09,143.07,7.67955243]
[1764189344403,3.08,143.09,143.08,0.7]
[1764189345227,0.67,143.09,143.05,7.69056274]
[1764189345387,0.28432314,143.05,142.99,6.99349604]
[1764189345595,3.08,143.04,143.01,4.44335824]
[1764189345794,3.08,143.04,143.0,5.14335824]
[1764189345994,3.08,143.04,143.01,0.7]
[1764189346498,3.08,143.04,143.01,7.69208525]
[1764189347019,3.08,143.04,143.02,0.7]
[1764189347814,3.08,143.04,143.0,11.43622199]
[1764189348117,3.08,143.04,143.0,12.13622199]
[1764189348338,3.08,143.04,143.01,0.7]
[1764189348706,15.18443593,143.04,142.99,12.13675057]
[1764189349020,15.18443593,143.04,143.0,0.7]
[1764189349198,14.51443593,143.04,143.0,0.7]
[1764189349398,0.67,143.03,143.0,0.7]
[1764189349805,10.07107769,143.04,143.0,7.69298919]
[1764189350230,10.07107769,143.04,143.0,6.99298919]
[1764189350521,10.74107769,143.04,143.0,7.69298919]
[1764189350730,10.74107769,143.04,143.01,0.7]
[1764189351596,10.74107769,143.04,143.0,6.99298919]
[1764189351797,10.74107769,143.04,143.0,7.69298919]
[1764189352200,3.75,143.03,142.99,0.7]
[1764189352417,8.19335824,143.03,142.99,0.7]
[1764189353997,3.75,143.03,142.99,0.7]
[1764189354199,3.75,143.03,142.99,7.69328642]
[1764189354518,3.08,143.03,142.99,12.13664466]
[1764189354721,3.75,143.03,142.99,10.54242986]
[1764189354908,3.75,143.03,142.97,3.54914344]
[1764189354909,16.308864,143.01,142.97,3.54914344]
[1764189355300,16.308864,143.01,142.98,0.7]
[1764189355997,0.67,143.02,142.98,0.7]
[1764189356196,0.67,143.02,142.98,10.54286808]
[1764189356619,0.67,143.02,142.99,0.7]
[1764189356921,10.7418079,143.03,142.99,0.7]
[1764189357222,3.75,143.02,142.99,0.7]
[1764189358325,3.08,143.02,142.99,0.7]
[1764189360226,10.07208542,143.02,142.99,0.7]
[1764189360832,10.74208542,143.02,142.99,0.7]
[1764189361321,3.08,143.02,142.99,7.69345793]
[1764189361521,3.08,143.02,142.99,7.69343295]
[1764189361703,10.07203985,143.02,142.99,0.7]
[1764189362112,10.74203985,143.02,142.99,0.7]
[1764189363523,0.67,143.01,142.96,10.54410706]
[1764189363731,0.67,143.01,142.96,7.69496362]
[1764189363915,0.67,143.01,142.97,0.7]
[1764189364807,7.66277031,143.01,142.97,7.69429866]
[1764189365211,7.66277031,143.01,142.97,0.7]
[1764189365613,7.66277031,143.01,142.97,7.69428922]
[1764189366931,10.07310164,143.0,142.97,7.69428922]
[1764189367225,3.08,143.0,142.97,7.69428922]
[1764189367731,10.07307981,143.0,142.97,0.7]
[1764189368637,10.07315125,143.0,142.97,0.7]
[1764189368807,10.72315125,143.0,142.97,0.7]
[1764189369227,10.07315125,143.0,142.97,0.7]
[1764189369426,2.84914344,142.98,142.94,0.68]
[1764189369627,2.84914344,142.98,142.93,0.1]
[1764189369628,6.21346658,142.97,142.93,0.78]
[1764189370014,6.86346658,142.97,142.93,0.78]
[1764189370530,3.08,142.98,142.94,2.84914344]
[1764189370729,3.08,142.98,142.95,6.99545295]
[1764189370920,3.08,142.98,142.95,7.67545295]
[1764189371120,3.08,142.98,142.96,0.68]
[1764189373814,0.65,143.06,142.99,16.308864]
[1764189374032,0.65,143.1,143.04,2.84914344]
[1764189374332,0.65,143.1,143.05,2.84914344]
[1764189374333,3.1,143.09,143.05,2.84914344]
[1764189374537,0.28432314,143.08,143.03,2.84914344]
[1764189374822,1.00432314,143.08,143.03,2.84914344]
[1764189375035,1.00432314,143.08,143.04,0.66]
[1764189375338,2.84914344,143.06,143.01,0.66]
[1764189375510,12.93970618,143.05,143.01,0.66]
[1764189375711,0.28432314,143.04,143.01,0.66]
[1764189376124,0.28432314,143.04,142.99,0.66]
[1764189376125,1.00432314,143.04,142.99,0.66]
[1764189376429,3.85346658,143.04,142.99,7.65329671]
[1764189376634,0.72,143.03,142.99,7.65329671]
[1764189376812,3.1,143.02,142.99,7.65329671]
[1764189377007,3.1,143.02,142.99,6.99329671]
[1764189377212,3.82,143.02,142.98,7.65381531]
[1764189378628,3.82,143.02,142.98,6.99381531]
[1764189378834,3.82,143.02,142.98,7.65381531]
[1764189379236,3.82,143.02,142.99,0.66]
[1764189380240,3.1,143.01,142.99,7.65343471]
[1764189381037,3.1,143.01,142.99,0.66]
[1764189381334,2.84914344,143.02,142.99,0.66]
[1764189381520,3.1,143.01,142.99,0.66]
[1764189382127,3.1,143.01,142.99,7.65344435]
[1764189382642,10.56095755,143.03,142.99,7.65344435]
[1764189382839,3.08,143.01,142.99,0.66]
[1764189384632,3.08,143.01,142.99,7.65347925]
[1764189385219,3.08,143.01,142.97,0.66]
[1764189385220,2.84914344,143.0,142.97,0.66]
[1764189385438,2.84914344,142.99,142.94,7.65594235]
[1764189385637,5.92914344,142.98,142.94,7.65594235]
[1764189385940,2.84914344,143.01,142.95,0.66]
[1764189386140,3.08,143.0,142.95,0.66]
[1764189386545,0.72,142.99,142.94,27.93758044]
[1764189386728,0.72,142.99,142.94,48.27657976]
[1764189387641,3.8,143.0,142.94,48.27657976]
[1764189387937,0.72,143.0,142.94,48.27657976]
[1764189388135,3.1,142.99,142.94,48.27657976]
[1764189388524,3.1,142.99,142.96,6.99496362]
[1764189389128,3.1,142.99,142.96,7.65496362]
[1764189392548,3.08,142.99,142.97,0.66]
[1764189393935,3.08,142.99,142.96,0.66]
[1764189394434,3.08,142.99,142.97,6.99447436]
[1764189395445,0.72,143.05,142.98,0.66]
[1764189395646,0.72,143.05,142.99,2.84914344]
[1764189395851,3.08,143.04,143.0,0.66]
[1764189396249,3.8,143.04,143.0,0.66]
[1764189396445,3.8,143.04,143.0,7.65264157]
[1764189398253,0.72,143.04,143.0,7.65264157]
[1764189398453,3.8,143.04,143.0,7.65264157]
[1764189399044,0.72,143.03,143.0,7.65264157]
[1764189399234,0.72,143.03,143.0,6.99264157]
[1764189400033,0.72,143.03,143.0,7.65264157]
[1764189402339,9.83992374,143.05,143.0,7.65264157]
[1764189402547,3.08,143.04,143.01,0.66]
[1764189402855,3.8,143.04,143.01,0.66]
[1764189403155,3.8,143.04,143.0,27.32430249]
[1764189403356,3.8,143.04,143.0,27.98430249]
[1764189404155,3.8,143.04,143.0,25.13515905]
[1764189404652,3.8,143.04,143.0,27.98430249]
[1764189404852,3.08,143.04,143.01,0.66]
[1764189405058,3.08,143.04,143.01,3.50914344]
[1764189405259,3.08,143.05,143.01,3.50914344]
[1764189405455,3.08,143.05,143.02,0.66]
[1764189405859,3.76,143.05,143.02,6.99176349]
[1764189406539,3.76,143.05,143.02,7.65176349]
[1764189407144,0.68,143.04,143.01,6.99233351]
[1764189407658,0.68,143.04,143.01,7.65233351]
[1764189408350,3.08,143.05,143.02,0.66]
[1764189408661,3.76,143.05,143.02,0.66]
[1764189409351,3.76,143.05,143.02,7.65183276]
[1764189410152,0.68,143.04,143.02,6.99183276]
[1764189410463,3.76,143.05,143.02,6.99183276]
[1764189411438,3.76,143.05,143.01,7.652518]
[1764189412567,3.76,143.05,143.02,0.66]
[1764189412760,3.76,143.05,143.01,7.652518]
[1764189413668,0.68,143.08,143.04,2.84914344]
[1764189413839,3.08,143.07,143.04,2.84914344]
[1764189414045,3.08,143.07,143.04,3.50914344]
[1764189414247,3.76,143.07,143.04,3.50914344]
[1764189414458,3.76,143.07,143.04,0.66]
[1764189415656,3.76,143.07,143.05,6.99056274]
[1764189421349,4.73312305,143.1,143.06,0.66]
[1764189421350,0.96432314,143.1,143.06,0.66]
[1764189421556,0.96432314,143.1,143.07,4.44879991]
[1764189421557,3.08,143.1,143.07,4.44879991]
[1764189421975,3.08,143.1,143.08,7.64888833]
[1764189422550,3.08,143.1,143.08,12.09768824]
[1764189422966,0.68,143.14,143.09,5.10879991]
[1764189423166,0.68,143.15,143.11,4.44879991]
[1764189423404,6.98421567,143.18,143.11,4.44879991]
[1764189423405,7.66421567,143.18,143.13,4.44879991]
[1764189423666,3.76,143.18,143.15,4.44879991]
[1764189423872,3.76,143.18,143.15,5.10879991]
[1764189424058,3.76,143.18,143.15,11.43437052]
[1764189424262,13.93874483,143.17,143.07,25.78999417]
[1764189424464,4.44879991,143.11,143.06,7.64991819]
[1764189424770,3.08,143.11,143.06,12.0987181]
[1764189424954,0.68,143.1,143.06,6.98991819]
[1764189425150,0.68,143.1,143.07,0.66]
[1764189425354,7.52879991,143.11,143.07,0.66]
[1764189425657,8.20879991,143.11,143.07,0.66]
[1764189425857,3.76,143.11,143.07,0.66]
[1764189426057,3.76,143.11,143.08,6.989097]
[1764189426264,3.08,143.13,143.1,4.44879991]
[1764189426466,3.74,143.15,143.1,4.44879991]
[1764189426670,3.74,143.15,143.1,5.11879991]
[1764189426876,3.74,143.15,143.11,0.67]
[1764189427271,0.66,143.14,143.09,5.11879991]
[1764189427672,0.66,143.14,143.1,0.67]
[1764189428260,0.66,143.14,143.1,7.65766017]
[1764189428785,7.6462202,143.14,143.1,7.65766017]
[1764189429768,6.9862202,143.14,143.1,7.65766017]
[1764189429984,0.66,143.13,143.1,7.65766017]
[1764189431271,14.51459608,143.15,143.1,7.65766017]
[1764189431471,0.66,143.14,143.1,7.65766017]
[1764189431870,0.66,143.14,143.1,6.98766017]
[1764189432791,7.6461937,143.14,143.1,6.98766017]
[1764189433089,0.66,143.13,143.1,6.98766017]
[1764189434387,0.66,143.13,143.09,6.98860856]
[1764189434690,0.66,143.13,143.09,7.65860856]
[1764189437595,0.66,143.13,143.09,12.10740847]
[1764189437888,7.6467035,143.13,143.09,6.9885364]
[1764189438082,4.44879991,143.12,143.07,6.98948834]
[1764189438284,7.81312305,143.11,143.04,20.5570101]
[1764189438485,4.44879991,143.09,143.04,8.19879991]
[1764189438671,5.14879991,143.09,143.05,0.67]
[1764189438875,0.7,143.09,143.05,0.67]
[1764189439276,0.7,143.09,143.05,7.66041024]
[1764189439671,0.7,143.09,143.06,0.67]
[1764189439990,0.7,143.09,143.06,6.98966129]
[1764189441603,10.06766042,143.11,143.07,5.11879991]
[1764189441799,0.7,143.1,143.07,12.10813526]
[1764189442182,10.06766042,143.11,143.07,11.43813526]
[1764189442385,0.7,143.11,143.08,0.67]
[1764189442599,3.78,143.11,143.08,0.67]
[1764189442802,3.78,143.11,143.07,11.43813526]
[1764189443003,0.7,143.1,143.07,12.10813526]
[1764189444991,3.08,143.11,143.07,12.10813526]
[1764189445191,3.78,143.11,143.07,12.10813526]
[1764189445507,0.28432314,143.13,143.08,5.11879991]
[1764189445693,0.28432314,143.13,143.1,4.44879991]
[1764189445892,0.98432314,143.13,143.1,4.44879991]
[1764189446208,0.28432314,143.11,143.06,11.43872422]
[1764189446409,3.08,143.1,143.07,4.44879991]
[1764189446707,3.78,143.1,143.07,4.44879991]
[1764189447092,3.78,143.1,143.07,11.43812728]
[1764189449509,3.78,143.1,143.08,4.44879991]
[1764189450188,3.78,143.1,143.08,11.43770391]
[1764189451389,16.308864,143.14,143.08,11.43770391]
[1764189451390,0.7,143.14,143.09,5.11879991]
[1764189451604,3.78,143.14,143.11,4.44879991]
[1764189451995,0.7,143.13,143.11,4.44879991]
[1764189452806,0.7,143.13,143.11,11.43622464]
[1764189453608,3.08,143.14,143.11,11.43622464]
[1764189453907,3.78,143.14,143.11,11.43622464]
[1764189454494,3.08,143.14,143.12,4.44879991]
[1764189454909,3.08,143.14,143.13,6.98665548]
[1764189455212,3.08,143.14,143.12,4.44879991]
[1764189455401,3.78,143.14,143.12,11.43593335]
[1764189456318,3.78,143.14,143.12,6.98713344]
[1764189456493,3.78,143.14,143.12,11.43593335]
[1764189456692,6.98570455,143.15,143.12,11.43593335]
[1764189456895,3.78,143.15,143.12,11.43593335]
[1764189459299,3.08,143.15,143.12,11.43593335]
[1764189459619,0.7,143.14,143.12,11.43593335]
[1764189463595,3.08,143.15,143.13,4.44879991]
[1764189463799,3.08,143.15,143.12,11.43593335]
[1764189463800,3.78,143.15,143.12,11.43593335]
[1764189464012,0.7,143.14,143.12,11.43593335]
[1764189469025,0.7,143.14,143.11,11.43631025]
[1764189469727,7.97050147,143.14,143.11,11.43631025]
[1764189469921,7.97050147,143.14,143.11,4.44879991]
[1764189470121,0.67,143.13,143.1,11.43678068]
[1764189470327,3.08,143.12,143.1,11.43678068]
[1764189470698,3.75,143.12,143.1,11.43678068]
[1764189470915,3.08,143.12,143.1,11.43678068]
[1764189472201,0.67,143.11,143.1,6.98798077]
[1764189472408,0.67,143.11,143.1,11.43678068]
[1764189472615,3.08,143.12,143.1,11.43678068]
[1764189472930,3.75,143.12,143.1,11.43678068]
[1764189474306,0.67,143.11,143.1,11.43678068]
[1764189474511,3.75,143.12,143.1,11.43678068]
[1764189474711,0.67,143.11,143.1,11.43678068]
[1764189475222,3.08,143.12,143.1,11.43678068]
[1764189475528,3.75,143.12,143.1,11.43678068]
[1764189478531,3.75,143.12,143.1,9.83274932]
[1764189479710,3.75,143.12,143.11,2.84476855]
[1764189480929,3.75,143.12,143.1,9.83274932]
[1764189486051,3.75,143.12,143.1,6.98798077]
[1764189486413,3.75,143.12,143.11,2.84476855]
[1764189486731,0.67,143.11,143.08,26.14263951]
[1764189487042,3.08,143.13,143.1,2.84476855]
[1764189487210,0.67,143.14,143.12,2.84476855]
[1764189487409,0.95432314,143.14,143.13,2.84476855]
[1764189487813,0.95432314,143.14,143.12,2.84476855]
[1764189488227,0.67,143.13,143.12,2.84476855]
[1764189489733,0.28432314,143.14,143.12,2.84476855]
[1764189489934,0.95432314,143.14,143.12,2.84476855]
[1764189490440,0.67,143.13,143.12,2.84476855]
[1764189490639,0.67,143.13,143.11,9.83227907]
[1764189491220,0.67,143.13,143.1,9.83278144]
[1764189491432,0.67,143.13,143.1,6.98801289]
[1764189492117,0.67,143.13,143.08,2.84476855]
[1764189492324,10.50148187,143.13,143.08,9.83374252]